Cogmind - Beta 10.2 @@@ ROGUE MODE // 2021.07.19 @ 21:54:39 Player: Demise Result: Destroyed by H-66 Slayer with Gauss Rifle Performance ------------- Evolutions (5) 2500 Regions Visited (15) 3000 Robots Destroyed (175) 875 Value Destroyed (8664) 8664 Prototype IDs (35) 700 Alien Tech Used (0) 0 Bonus (2624) 2624 TOTAL SCORE: 18363 Bonus ------- High Alert Combat Kills 363 Follower Combat Kills 916 Entered Garrisons 600 Used RIF Installer 1500 Aligned with FarCom 300 Friendly Fire -1055 Cogmind --------- Core Integrity 0/1000 Matter 86/300 Energy 51/100 System Corruption 21% Temperature Cool (0) Movement Core (50) Location -5/Factory Parts ------- > --- POWER (1) -------- (None) > --- PROPULSION (2) --- (None) > --- UTILITY (12) ----- Hacking Suite Relay Coupler [NC] (31) Relay Coupler [NC] (28) Relay Coupler [Grunt] (5) > --- WEAPON (2) ------- (None) > --- INVENTORY (4) ---- YI-UF0's Bottomless Matter Pit (1310) Experimental Sensor Array Cloak of Protection Long-range Tractor Beam Peak State ------------ > --- POWER ------------ Micro Fission Core > --- PROPULSION ------- Biometal Medium Treads Biometal Medium Treads > --- UTILITY ---------- High-capacity Storage Unit High-capacity Storage Unit High-capacity Storage Unit High-capacity Storage Unit Improved Core Shielding Improved Hardlight Generator System Shield System Shield Relay Coupler [NC] Relay Coupler [Grunt] Relay Coupler [Sentry] Relay Coupler [Hunter] > --- WEAPON ----------- Enhanced Coil Gun Enhanced Coil Gun > --- INVENTORY -------- Light Angular Momentum Engine Light Fission Core Improved Medium Treads Improved Medium Treads Large Storage Unit Large Storage Unit Energy Well YI-UF0's Bottomless Matter Pit Experimental Sensor Array Improved Signal Interpreter Cloak of Protection Hardened Medium Armor Plating Hardened Medium Armor Plating Hardened Medium Armor Plating Improved Light Armor Plating Relay Coupler [NC] Relay Coupler [NC] Relay Coupler [NC] Relay Coupler [NC] Relay Coupler [ARC] Relay Coupler [Swarmer] Relay Coupler [Grunt] Relay Coupler [Duelist] Relay Coupler [Demolisher] Relay Coupler [Demolisher] Relay Coupler [Hunter] Improved Component Analysis Suite Improved Dynamic Insulation System Long-range Tractor Beam Recalibrator Tesla Rifle Advanced Plasma Cannon Flak Gun Hypervelocity Coil Gun Hypervelocity Gauss Cannon Scythe [Rating: 83] Favorites ----------- Power Improved Ion Engine Engine Improved Ion Engine Power Core Micro Fission Core Reactor Light Antimatter Reactor Propulsion Light Treads Treads Light Treads Utility High-capacity Storage Unit Device Advanced Heat Sink Storage High-capacity Storage Unit Processor Advanced Signal Interpreter Hackware System Shield Protection Improved Light Armor Plating Weapon Heavy Assault Rifle Energy Gun Shock Rifle Energy Cannon HERF Cannon Ballistic Gun Heavy Assault Rifle Ballistic Cannon Hypervelocity Gauss Cannon Launcher Heavy Missile Launcher Special Weapon Remote Datajack Slashing Weapon Scythe Special Melee Weapon Datajack Build | -11 -10 -10 -10 -9 -8 -8 -8 -7 -7 -7 -6 -6 -6 -6 -5 ------- Run | Scr Mat Min Exi Min Mat Gar Mat Fac Was Fac Fac Gar Fac Gar Fac Slots Evolved 10 | . . . . . 4 . . 2 . . 2 . . . 2 Power . | . . . . . . . . . . . . . . . . Propulsion . | . . . . . . . . . . . . . . . . Utility 10 | . . . . . 4 . . 2 . . 2 . . . 2 Weapon . | . . . . . . . . . . . . . . . . Parts Attached 352 | 4 26 6 1 6 22 9 23 49 10 4 21 30 16 46 79 Power 21 | . 4 . 1 . . . 2 2 1 . 1 2 2 3 3 Engine 16 | . 4 . 1 . . . 2 2 1 . . 2 1 2 1 Core 4 | . . . . . . . . . . . 1 . 1 . 2 Reactor 1 | . . . . . . . . . . . . . . 1 . Propulsion 36 | 2 7 1 . . 3 . 1 3 2 . 1 . . 6 10 Treads 36 | 2 7 1 . . 3 . 1 3 2 . 1 . . 6 10 Leg . | . . . . . . . . . . . . . . . . Wheel . | . . . . . . . . . . . . . . . . Hover . | . . . . . . . . . . . . . . . . Flight . | . . . . . . . . . . . . . . . . Utility 139 | . 4 1 . 2 9 1 5 28 4 3 8 14 7 16 37 Device 32 | . . . . . 2 . . 11 2 . 1 3 1 2 10 Storage 18 | . 2 1 . 2 1 . . 2 . 3 2 1 1 2 1 Processor 4 | . 2 . . . . . 1 1 . . . . . . . Hackware 29 | . . . . . . . 2 2 1 . . 5 3 2 14 Protection 56 | . . . . . 6 1 2 12 1 . 5 5 2 10 12 Artifact . | . . . . . . . . . . . . . . . . Weapon 156 | 2 11 4 . 4 10 8 15 16 3 1 11 14 7 21 29 Energy Gun 4 | . . . . . 1 . . . . . . . 1 1 1 Energy Cannon 5 | . . . . . . . . . . . . . . 2 3 Ballistic Gun 67 | 2 7 3 . 2 4 4 8 8 1 . 4 7 1 8 8 Ballistic Cannon 2 | . . . . . . . . . . . . . . . 2 Launcher 21 | . 1 1 . 2 1 3 4 . . . 4 4 . 1 . Special Weapon 26 | . 3 . . . 1 . . 1 2 . 1 3 3 4 8 Impact Weapon . | . . . . . . . . . . . . . . . . Slashing Weapon 27 | . . . . . 3 1 1 5 . 1 2 . 2 5 7 Piercing Weapon . | . . . . . . . . . . . . . . . . Special Melee Weapon 4 | . . . . . . . 2 2 . . . . . . . Unidentified Prototypes 7 | . . . . 2 2 . 2 . . . . . . . 1 Parts Lost 66 | . 1 1 . . . . . 6 . . 3 6 . 16 33 Power 9 | . 1 . . . . . . 2 . . . 2 . 1 3 Propulsion 10 | . . 1 . . . . . 2 . . 1 . . 3 3 Utility 30 | . . . . . . . . 2 . . 2 2 . 6 18 Weapon 17 | . . . . . . . . . . . . 2 . 6 9 Highest Loss Streak 13 | . 1 1 . . . . . 3 . . 3 3 . 13 13 Average Slot Usage (%) 91 | . 80 97 100 100 99 100 99 99 87 69 70 85 89 92 94 Engine 6 | . 5 14 14 14 9 9 8 6 6 7 . 3 4 4 . Core 1 | . . . . . . . . . . . 5 1 1 . 3 Treads 14 | . 27 26 28 28 18 18 17 15 10 7 6 6 6 11 8 Device 1 | . . . . . . . . 1 1 . . . . 3 5 Storage 24 | . 8 23 28 28 24 27 27 23 23 23 21 26 33 28 22 Processor 1 | . 9 4 . . . . . 6 3 . . . . . . Hackware 13 | . . . . . . . 17 17 19 15 13 17 26 11 28 Protection 11 | . . . . . 28 27 9 9 5 7 12 15 4 17 9 Ballistic Gun 11 | . 25 28 28 27 17 16 16 12 7 . 3 6 4 4 5 Special Weapon 1 | . 1 . . . . . . . 6 . . 2 3 2 2 Slashing Weapon 1 | . . . . . . 1 . 1 . 6 3 . 1 3 1 Naked Turns . | . . . . . . . . . . . . . . . . Heaviest Build 178 | 2 41 59 59 61 89 94 94 96 124 139 161 166 147 178 165 Greatest Support 70 | 20 40 40 40 40 42 42 42 48 70 70 70 70 70 70 70 Greatest Overweight (x) 59 | . 1 2 1 1 2 2 3 2 23 1 2 2 2 59 47 Average Overweight (x) 1 | . . 1 1 1 1 2 1 1 1 1 1 1 1 2 2 Largest Inventory Capacity 42 | 4 12 18 18 18 24 24 24 24 24 26 32 40 40 42 36 Average Capacity 26 | 4 8 16 18 17 22 24 24 24 24 24 27 32 40 37 35 Most Carried 40 | 4 12 15 18 18 24 24 24 24 24 25 26 36 40 40 36 Average Carried 25 | 2 7 14 17 17 21 23 23 23 23 24 23 27 38 33 34 Final Capacity 40 | 4 12 18 18 18 24 24 24 24 24 26 32 40 40 36 4 Final Carried 40 | 4 12 15 18 18 24 24 24 24 24 25 23 36 40 36 4 Class Distribution -------------------- 38% | Bothacker-Mutant 32% | Hauler-Mutant 18% | Mutant 9% | Scavenger-Mutant Dominant Class ---------------- Mutant | -10/Materials Mutant | -10/Mines Mutant | -10/Exiles Mutant | -9/Mines Hauler-Mutant | -8/Materials Hauler-Mutant | -8/Garrison Bothacker-Mutant | -8/Materials Scavenger-Mutant | -7/Factory Hauler-Mutant | -7/Waste Hauler-Mutant | -7/Factory Hauler-Mutant | -6/Factory Bothacker-Mutant | -6/Garrison Bothacker-Mutant | -6/Factory Bothacker-Mutant | -6/Garrison Bothacker-Mutant | -5/Factory Resources | -11 -10 -10 -10 -9 -8 -8 -8 -7 -7 -7 -6 -6 -6 -6 -5 ----------- Run | Scr Mat Min Exi Min Mat Gar Mat Fac Was Fac Fac Gar Fac Gar Fac Matter Collected 9798 | 260 399 149 . 273 673 394 789 847 637 . 912 1561 370 1163 1371 Remotely 1316 | . . . . . . . . 370 . . 423 311 . . 212 Salvage Created 9009 | 106 523 202 . 127 521 271 836 454 1299 . 668 1044 156 947 1855 Parts 428 | 7 39 7 . 12 27 16 51 27 36 . 30 32 9 38 97 Haulers Intercepted 7 | . 1 . . . 2 . 4 . . . . . . . . Recyclers Shooed 14 | . 1 . . . 1 . 2 . . . 2 . . . 8 Parts Field Recycled . | . . . . . . . . . . . . . . . . Retrieved Matter . | . . . . . . . . . . . . . . . . Parts Self-Destructed . | . . . . . . . . . . . . . . . . Prevented . | . . . . . . . . . . . . . . . . Kills | -11 -10 -10 -10 -9 -8 -8 -8 -7 -7 -7 -6 -6 -6 -6 -5 ------- Run | Scr Mat Min Exi Min Mat Gar Mat Fac Was Fac Fac Gar Fac Gar Fac Combat Hostiles Destroyed 131 | . 12 5 . 3 8 11 10 10 4 . 11 19 3 12 23 Melee 14 | . . . . . . . . 3 . . . . 2 4 5 Guns 59 | . 9 2 . . 6 7 5 7 . . 2 5 1 4 11 Cannons 15 | . . . . . . . . . 4 . 1 . . 3 7 AOE 37 | . 3 3 . 3 2 4 5 . . . 4 12 . 1 . Classes Destroyed 17 | 2 5 . . . 1 . 3 1 1 . 3 . . . 1 Worker 6 | . . . . . . . 2 1 . . 2 . . . 1 Builder 4 | . . . . . . . 1 . . . . . . . 3 Tunneler 3 | 2 . . . 1 . . . . . . . . . . . Hauler 7 | . 1 . . . 2 . 4 . . . . . . . . Recycler 8 | 1 . 1 . . 1 . 2 . . . . . . . 3 Mechanic 2 | . . . . . . . . . . . . . . . 2 Operator 4 | . 2 . . . 1 . 1 . . . . . . . . Watcher 9 | . 3 . . . 2 . 2 . . . 1 . . . 1 Swarmer 24 | . 3 3 . 3 3 5 3 3 . . . . . 1 . Grunt 52 | . 9 2 . . 2 3 4 2 . . 4 13 2 5 6 Brawler 3 | . . . . . . . . . . . 1 2 . . . Duelist 4 | . . . . . . . 1 . . . . 2 . . 1 Sentry 16 | . . . . . 3 3 2 1 . . . . . 5 2 Hunter 7 | . . . . . . . . . . . 3 2 . . 2 Programmer 20 | . . . . . . . . 4 . . 2 . 1 1 12 Behemoth 1 | . . . . . . . . . . . 1 . . . . Compactor 4 | . . . . . . . . . 4 . . . . . . Best Kill Streak 6 | 3 4 3 . 3 4 4 6 4 2 . 4 4 1 4 6 Combat Bots Only 6 | . 3 3 . 3 3 4 3 4 2 . 3 4 1 4 6 Max Kills in Single Turn 3 | 1 3 3 . 2 2 1 3 1 1 . 1 2 1 1 2 Gunslinging 1 | . 1 . . . . . . . . . . . . . . Exploded 3 | . 3 3 . 2 2 1 2 . . . 1 2 . 1 . Melee 1 | . . . . . . . . 1 . . . . 1 1 1 Uniques/NPCs Destroyed 1 | . . . . 1 . . . . . . . . . . . YI-UF0 (-9/Mines) Combat | -11 -10 -10 -10 -9 -8 -8 -8 -7 -7 -7 -6 -6 -6 -6 -5 -------- Run | Scr Mat Min Exi Min Mat Gar Mat Fac Was Fac Fac Gar Fac Gar Fac Damage Taken 16602 | . 603 244 . 27 348 388 284 1582 . 84 2130 1237 622 3308 5745 Core 1996 | . 43 15 . 9 17 8 18 147 . 16 161 103 83 358 1018 Absorbed by Shields 145 | . . . . . . 16 . . . . . . . 81 48 Reduced by Siege Mode 169 | . . . . . . . . . . . 129 40 . . . Core Remaining (%) 71 | 100 . . . 73 . . 92 . . 76 . . . 17 . Volleys Fired 734 | 10 99 21 . 12 36 31 60 36 107 . 64 73 18 43 124 Largest 2 | 2 2 2 . 2 2 2 2 2 2 . 2 2 2 2 2 Hottest 100 | 40 100 43 . 46 100 93 70 46 43 . 75 62 78 88 98 Shots Fired 1112 | 20 184 41 . 21 66 50 111 71 125 . 93 81 22 59 168 Gun 770 | 20 174 40 . 18 61 42 102 71 18 . 49 33 10 38 94 Cannon 49 | . . . . . . . . . . . . . . 8 41 Launcher 98 | . 1 1 . 3 4 8 9 . . . 38 32 . 2 . Special 195 | . 9 . . . 1 . . . 107 . 6 16 12 11 33 Kinetic 783 | 20 174 40 . 18 61 42 102 71 18 . 49 33 8 36 111 Thermal 139 | . 9 . . . 1 . . . 101 . 6 . . . 22 Explosive 55 | . 1 1 . 3 4 8 2 . . . 17 17 . 2 . Electromagnetic 57 | . . . . . . . 7 . . . 21 15 2 10 2 Robot Hit Streak 36 | 4 36 7 . 9 27 19 11 12 15 . 17 13 7 10 15 Robot Miss Streak 12 | 2 5 3 . 1 7 2 2 3 2 . 3 3 1 2 12 Penetration Max 1 | . . . . . . . . . . . . . 1 . 1 Secondary Targets 3 | . 2 . . . . . . 1 . . . . . . . Max Gunslinging Chain 1 | . 1 . . . . . . 1 . . . . . . . Shots Hit Robots 829 | 11 126 29 . 16 52 25 79 73 101 . 73 45 25 60 114 Core Hits 400 | 6 37 11 . 11 23 24 38 20 12 . 31 50 7 52 78 Critical Hits 48 | . 1 . . 2 . . 2 1 26 . 1 . . 1 14 Critical Kills 13 | . . . . . . . . . 3 . 1 . . . 9 Critical Parts Destroyed 15 | . 1 . . 2 . . . 1 5 . . . . 1 5 Melee Attacks 174 | . . . . . 10 4 2 33 . 17 8 12 16 47 25 Impact . | . . . . . . . . . . . . . . . . Slashing 168 | . . . . . 10 4 2 27 . 17 8 12 16 47 25 Piercing . | . . . . . . . . . . . . . . . . Sneak Attacks 8 | . . . . . 4 . . 3 . . . . . . 1 Combat Hostiles . | . . . . . . . . . . . . . . . . Follow-up Attacks . | . . . . . . . . . . . . . . . . Damage Inflicted 22180 | 128 1140 343 . 447 1457 623 1710 1319 1864 . 2839 2837 558 2725 4190 Guns 8894 | 128 1025 217 . 190 694 333 1144 832 263 . 678 281 206 680 2223 Cannons 1209 | . . . . . . . . . . . . . . 209 1000 Explosions 6174 | . 115 126 . 257 199 290 525 . . . 2083 1891 . 265 423 Melee 4200 | . . . . . 564 . 41 487 . . . 665 352 1571 520 Ramming 24 | . . . . . . . . . . . . . . . 24 Kinetic 9120 | 128 1025 217 . 190 694 333 1144 832 263 . 678 281 168 651 2516 Thermal 2508 | . . . . . . . 44 . 1601 . 78 71 . . 714 Explosive 4075 | . 115 126 . 257 199 290 157 . . . 974 1324 . 265 368 Electromagnetic 2253 | . . . . . . . 324 . . . 1109 496 38 238 48 Impact . | . . . . . . . . . . . . . . . . Slashing 4200 | . . . . . 564 . 41 487 . . . 665 352 1571 520 Piercing . | . . . . . . . . . . . . . . . . Highest Corruption 21 | . . . . . . . 5 4 4 2 . . 3 11 21 Average Corruption 5 | . . . . . . . 5 3 2 2 . . 1 5 7 Corruption Purged 13 | . . . . . . . . . 2 . . . . 11 . Effects 195 | . . . . . . . 3 18 19 7 . . 6 46 96 Message Errors 48 | . . . . . . . 1 6 4 1 . . 5 8 23 Matter Fused 39 | . . . . . . . 1 5 4 . . . 1 10 18 Heat Flow Errors 25 | . . . . . . . 1 1 3 4 . . . 7 9 Energy Discharges 19 | . . . . . . . . 3 2 1 . . . 6 7 Parts Rejected 2 | . . . . . . . . . . . . . . 1 1 Data Loss (minor) 19 | . . . . . . . . 2 3 1 . . . 4 9 Data Loss (major) 5 | . . . . . . . . . . . . . . 1 4 Misfires 4 | . . . . . . . . . . . . . . 1 3 Alerts 1 | . . . . . . . . . . . . . . 1 . Misdirections 6 | . . . . . . . . . . . . . . 2 4 Targeting Errors 26 | . . . . . . . . 1 3 . . . . 5 17 Weapon Failures 1 | . . . . . . . . . . . . . . . 1 Overload Shots . | . . . . . . . . . . . . . . . . Overflow Damage 656 | . 72 4 . . 104 6 . 12 . . 51 140 24 94 149 Projectiles 42 | . . . . . . . . . . . . . . . 42 Explosions 183 | . 72 4 . . 4 6 . . . . 51 20 . 1 25 Melee 431 | . . . . . 100 . . 12 . . . 120 24 93 82 Knockbacks 7 | . . . . . . . . . . . . . . . 7 Impact . | . . . . . . . . . . . . . . . . Kinetic 6 | . . . . . . . . . . . . . . . 6 Secondary 1 | . . . . . . . . . . . . . . . 1 Self-Inflicted Damage 349 | . 119 23 . . 24 . 24 . . . 10 83 . . 66 Shots 19 | . 2 1 . . 2 . 1 . . . 5 7 . . 1 Rammed 5 | . . . . . . . . . . . . . . . 5 Targets Rammed 5 | . . . . . . . . . . . . . . . 5 Kicked . | . . . . . . . . . . . . . . . . Crushed . | . . . . . . . . . . . . . . . . Highest Temperature 298 | . 96 25 . 8 168 297 121 274 276 280 201 169 2 235 298 Average Temperature 75 | . 19 8 . 3 40 113 25 113 116 117 86 58 1 87 94 Received Heat Transfer 3035 | . 258 129 . . 117 90 135 363 . 45 330 180 42 855 491 Effects 2 | . . . . . . . . . . . . . . . 2 Energy Bleed 1 | . . . . . . . . . . . . . . . 1 Interference 1 | . . . . . . . . . . . . . . . 1 Siege Activations 11 | . . . . . . . . . . . 3 6 2 . . Total Turns 201 | . . . . . . . . . . . 117 80 4 . . Longest Duration 60 | . . . . . . . . . . . 60 22 2 . . Robots Corrupted 6 | . . . . . . . . . . . 4 2 . . . Combat Hostiles 6 | . . . . . . . . . . . 4 2 . . . Parts Fried 10 | . . . . . . . 2 . . . 7 1 . . . Impact Corruptions . | . . . . . . . . . . . . . . . . Robots Melted . | . . . . . . . . . . . . . . . . Combat Hostiles . | . . . . . . . . . . . . . . . . Parts Melted 6 | . . . . . . . . . . . 4 1 . . 1 Heat Transferred 4887 | . . . . . . . 50 . 3589 . 148 50 . . 1050 Parts Sabotaged . | . . . . . . . . . . . . . . . . Parts Stolen . | . . . . . . . . . . . . . . . . Parts Stripped . | . . . . . . . . . . . . . . . . Power Chain Reactions 3 | . . . . . . . 2 . . . . 1 . . . Missiles Intercepted . | . . . . . . . . . . . . . . . . Alert | -11 -10 -10 -10 -9 -8 -8 -8 -7 -7 -7 -6 -6 -6 -6 -5 ------- Run | Scr Mat Min Exi Min Mat Gar Mat Fac Was Fac Fac Gar Fac Gar Fac Peak Influence 700 | 15 343 187 . 70 173 542 417 187 5 19 206 700 465 637 604 Initial 367 | . 9 62 . . 1 3 263 153 5 . 9 97 367 150 333 Average 202 | 4 180 58 . 20 60 353 287 70 1 7 76 464 188 374 270 Maximum Alert Level 3 | . 1 . . . . 2 2 . . . 1 3 2 2 2 Low Security (%) 57 | 100 54 100 . 100 100 12 10 100 100 100 99 15 72 7 32 Level 1 27 | . 45 . . . . 56 82 . . . . 16 21 54 53 Level 2 14 | . . . . . . 31 6 . . . . 62 5 37 13 Level 3 . | . . . . . . . . . . . . 5 . . . Level 4 . | . . . . . . . . . . . . . . . . Level 5 . | . . . . . . . . . . . . . . . . High Security . | . . . . . . . . . . . . . . . . Max Security . | . . . . . . . . . . . . . . . . Squads Dispatched 43 | . 5 . . . 3 . 1 5 . 3 6 . 7 . 13 Investigation 10 | . 4 . . . 2 . 1 . . 2 . . 1 . . Extermination 15 | . . . . . . . . 3 . 1 2 . 3 . 6 Reinforcement 14 | . 1 . . . 1 . . 2 . . 4 . 2 . 4 Assault . | . . . . . . . . . . . . . . . . Garrison 4 | . . . . . . . . . . . . . 1 . 3 Intercept . | . . . . . . . . . . . . . . . . Construction Impeded 5 | . . . . . . . . . . . 2 . 1 . 2 Haulers Reinforced 3 | . . . . . . . . . . . 1 . 1 . 1 Stealth | -11 -10 -10 -10 -9 -8 -8 -8 -7 -7 -7 -6 -6 -6 -6 -5 --------- Run | Scr Mat Min Exi Min Mat Gar Mat Fac Was Fac Fac Gar Fac Gar Fac Distress Signals 14 | . 1 . . . 1 . 3 . . . 1 . 1 . 7 Communications Jammed 104 | . . . . . . . . . . . . . . . 104 Distress Signals 103 | . . . . . . . . . . . . . . . 103 Times Spotted 277 | . 38 6 . 3 14 12 16 23 6 4 17 26 24 26 62 Peak Tracking Total 8 | . 6 3 . 3 3 8 3 5 2 3 4 4 4 8 7 Tactical Retreats 16 | . 4 . . . . 2 . 3 . . 1 1 2 . 3 Traps | -11 -10 -10 -10 -9 -8 -8 -8 -7 -7 -7 -6 -6 -6 -6 -5 ------- Run | Scr Mat Min Exi Min Mat Gar Mat Fac Was Fac Fac Gar Fac Gar Fac Traps Triggered 49 | . 2 . . . . 12 4 2 . . 3 14 1 7 4 Indirectly 3 | . . . . . . . 1 . . . 2 . . . . Trap Hack Attempts 14 | . . . . . . . 14 . . . . . . . . Triggered . | . . . . . . . . . . . . . . . . Disarmed . | . . . . . . . . . . . . . . . . Reprogrammed 1 | . . . . . . . 1 . . . . . . . . Reused . | . . . . . . . . . . . . . . . . Traps Extracted . | . . . . . . . . . . . . . . . . Installed . | . . . . . . . . . . . . . . . . Triggered . | . . . . . . . . . . . . . . . . Exploded 1 | . . . . . 1 . . . . . . . . . . Machines | -11 -10 -10 -10 -9 -8 -8 -8 -7 -7 -7 -6 -6 -6 -6 -5 ---------- Run | Scr Mat Min Exi Min Mat Gar Mat Fac Was Fac Fac Gar Fac Gar Fac Machines Disabled 26 | . 3 . . . 1 3 1 . . . 1 4 3 4 6 Max in Single Turn 2 | . 2 . . . 1 1 1 . . . 1 1 . 1 2 Garrison Relay 11 | . . . . . . 3 . . . . . 4 . 4 . Machines Sabotaged . | . . . . . . . . . . . . . . . . Garrisons Compromised . | . . . . . . . . . . . . . . . . Overloaded Fab Kills . | . . . . . . . . . . . . . . . . Fab Network Shutdowns . | . . . . . . . . . . . . . . . . Hacking | -11 -10 -10 -10 -9 -8 -8 -8 -7 -7 -7 -6 -6 -6 -6 -5 --------- Run | Scr Mat Min Exi Min Mat Gar Mat Fac Was Fac Fac Gar Fac Gar Fac Machines Accessed 56 | . 10 . 2 1 7 . 5 6 . 6 3 . 7 . 9 Terminals 31 | . 7 . . 1 2 . 4 4 . 3 1 . 4 . 5 Fabricators 4 | . . . . . . . . . . 1 1 . 1 . 1 Repair Stations 6 | . 1 . . . 2 . . 1 . . . . 1 . 1 Recycling Units 6 | . 2 . . . 1 . 1 1 . 1 . . . . . Scanalyzers 4 | . . . . . 1 . . . . 1 . . . . 2 Garrison Access 3 | . . . . . 1 . . . . . 1 . 1 . . Total Hacks 169 | . 37 . 2 4 20 . 18 15 . 19 5 . 20 . 29 Successful 98 | . 26 . 2 2 13 . 13 9 . 9 4 . 9 . 11 Failed 70 | . 10 . . 2 7 . 5 6 . 10 1 . 11 . 18 Catastrophic 8 | . . . . . 1 . . . . 2 . . 2 . 3 Database Lockouts 1 | . 1 . . . . . . . . . . . . . . Manual 103 | . 24 . 1 5 13 . 17 10 . 11 3 . 8 . 11 Terminals 104 | . 27 . . 4 8 . 16 10 . 10 3 . 10 . 16 Fabricators 12 | . . . . . . . . . . 5 1 . 3 . 3 Repair Stations 20 | . 2 . . . 5 . . 4 . . . . 6 . 3 Recycling Units 17 | . 8 . . . 4 . 2 1 . 2 . . . . . Scanalyzers 11 | . . . . . 2 . . . . 2 . . . . 7 Garrison Access 3 | . . . . . 1 . . . . . 1 . 1 . . Terminal Hacks 30 | . 11 . 2 2 2 . 6 1 . 1 . . 2 . 3 Record 1 | . . . 1 . . . . . . . . . . . . Part Schematic 5 | . 2 . . . 1 . 1 . . . . . . . 1 Robot Analysis 5 | . 3 . . 2 . . . . . . . . . . . Prototype ID Bank 4 | . 4 . . . . . . . . . . . . . . Level Access Points 1 | . . . . . . . 1 . . . . . . . . Branch Access Points 2 | . . . . . . . 1 . . . . . . . 1 Terminal Index 7 | . 1 . . . 1 . 1 1 . 1 . . 1 . 1 Fabricator Index 1 | . . . . . . . . . . . . . 1 . . Locate Traps 2 | . 1 . . . . . 1 . . . . . . . . Zone Layout 1 | . . . . . . . 1 . . . . . . . . EX-Prototype ID Bank 1 | . . . 1 . . . . . . . . . . . . Fabricator Hacks 9 | . . . . . . . . . . 4 1 . 3 . 1 Network Status 1 | . . . . . . . . . . . 1 . . . . Load Schematic 2 | . . . . . . . . . . 1 . . 1 . . Build 6 | . . . . . . . . . . 3 . . 2 . 1 Repair Station Hacks 10 | . 2 . . . 2 . . 4 . . . . 2 . . Scan Component 5 | . 1 . . . 1 . . 2 . . . . 1 . . Repair 5 | . 1 . . . 1 . . 2 . . . . 1 . . Recycling Unit Hacks 5 | . 2 . . . 1 . 1 1 . . . . . . . Retrieve Components 5 | . 2 . . . 1 . 1 1 . . . . . . . Scanalyzer 9 | . . . . . 2 . . . . 2 . . . . 5 Insert Component 4 | . . . . . 1 . . . . 1 . . . . 2 Analyze 5 | . . . . . 1 . . . . 1 . . . . 3 Garrison Access Hacks 3 | . . . . . 1 . . . . . 1 . 1 . . Unlock Access 3 | . . . . . 1 . . . . . 1 . 1 . . Unauthorized Hacks 32 | . 11 . . . 5 . 6 3 . 2 2 . 1 . 2 Terminals 24 | . 6 . . . 3 . 5 3 . 2 2 . 1 . 2 Track 2 | . 1 . . . . . . . . . . . . . 1 Assimilate 5 | . 1 . . . . . . 2 . 1 1 . . . . Botnet 15 | . 4 . . . 2 . 4 1 . 1 1 . 1 . 1 Operators 2 | . . . . . 1 . 1 . . . . . . . . Fabricators . | . . . . . . . . . . . . . . . . Repair Stations 1 | . . . . . 1 . . . . . . . . . . Mechanics 1 | . . . . . 1 . . . . . . . . . . Recycling Units 7 | . 5 . . . 1 . 1 . . . . . . . . Reject 1 | . 1 . . . . . . . . . . . . . . Recyclers 3 | . 1 . . . 1 . 1 . . . . . . . . Mask 1 | . 1 . . . . . . . . . . . . . . Tunnel 2 | . 2 . . . . . . . . . . . . . . Scanalyzers . | . . . . . . . . . . . . . . . . Garrison Access . | . . . . . . . . . . . . . . . . Data Cores Recovered 1 | . . . . . . . 1 . . . . . . . . Used . | . . . . . . . . . . . . . . . . Hacking Detections 47 | . 6 . . 1 6 . 5 6 . 5 2 . 7 . 9 Full Trace Events 9 | . 3 . . 1 2 . . . . 2 . . 1 . . Feedback Events 1 | . . . . . . . . . . . . . 1 . . Corruption 1 | . . . . . . . . . . . . . 1 . . Feedback Blocked . | . . . . . . . . . . . . . . . . Robot Schematics Acquired . | . . . . . . . . . . . . . . . . Robots Built . | . . . . . . . . . . . . . . . . Matter . | . . . . . . . . . . . . . . . . Time . | . . . . . . . . . . . . . . . . Total Robot Build Rating . | . . . . . . . . . . . . . . . . Part Schematics Acquired 9 | . 2 . . . 2 . 1 . . 1 . . . . 3 Parts Built 7 | . . . . . . . . . . 3 . . 2 . 2 Matter 898 | . . . . . . . . . . 306 . . 336 . 256 Time 222 | . . . . . . . . . . 75 . . 83 . 64 Total Part Build Rating 27 | . . . . . . . . . . 3 . . 8 . 16 Parts Repaired 5 | . 1 . . . 1 . . 2 . . . . 1 . . Time 147 | . 26 . . . 26 . . 70 . . . . 25 . . Parts Recycled . | . . . . . . . . . . . . . . . . Recycled Matter . | . . . . . . . . . . . . . . . . Retrieved Matter . | . . . . . . . . . . . . . . . . Retrieved Components 26 | . 16 . . . 5 . 3 2 . . . . . . . Parts Scanalyzed 4 | . . . . . 1 . . . . 1 . . . . 2 Part Schematics Acquired 4 | . . . . . 1 . . . . 1 . . . . 2 Parts Damaged 1 | . . . . . . . . . . 1 . . . . . Bothacking | -11 -10 -10 -10 -9 -8 -8 -8 -7 -7 -7 -6 -6 -6 -6 -5 ------------ Run | Scr Mat Min Exi Min Mat Gar Mat Fac Was Fac Fac Gar Fac Gar Fac Used RIF Installer 3 | . . . . . . 1 . . . . . 1 . 1 . Signal Jammer 1 | . . . . . . . . . . . . . . 1 . Robot Detection 1 | . . . . . . . . . . . . 1 . . . Robots Hacked 42 | . . . . . . . . 4 6 . . 8 4 6 14 Non-combat 3 | . . . . . . . . . . . . . 1 . 2 Combat 39 | . . . . . . . . 4 6 . . 8 3 6 12 Robot Hacks Applied 48 | . . . . . . . . 4 6 . . 8 8 7 15 parse_system 1 | . . . . . . . . . . . . . . . 1 generate_echo 1 | . . . . . . . . . . . . . 1 . . drop_inventory 1 | . . . . . . . . . . . . . . . 1 purge_threat 2 | . . . . . . . . . . . . . 2 . . block_reporting 1 | . . . . . . . . . . . . . 1 . . map_route 1 | . . . . . . . . . . . . . . . 1 ignore_targets 6 | . . . . . . . . . 6 . . . . . . scatter_targeting 4 | . . . . . . . . . . . . . . 2 2 overload_power 2 | . . . . . . . . . . . . . . 1 1 overwrite_iff 3 | . . . . . . . . 2 . . . . . 1 . streamctrl_low 1 | . . . . . . . . . . . . . 1 . . formatsys_high 25 | . . . . . . . . 2 . . . 8 3 3 9 Relay Couplers Released 45 | . . . . . . 11 . . . . . 17 . 17 . Machine Destruction 45 | . . . . . . 11 . . . . . 17 . 17 . Attached 25 | . . . . . . . . 2 1 . . 5 3 2 12 Robots Rewired . | . . . . . . . . . . . . . . . . Allies Hacked 1 | . . . . . . . . 1 . . . . . . . Hacks Repelled 1 | . . . . . . . . . . . . . 1 . . Allies | -11 -10 -10 -10 -9 -8 -8 -8 -7 -7 -7 -6 -6 -6 -6 -5 -------- Run | Scr Mat Min Exi Min Mat Gar Mat Fac Was Fac Fac Gar Fac Gar Fac Total Allies 33 | . 1 . . . . . . 6 . 1 . 8 4 4 9 Largest Group 5 | . 1 . . . . . . 2 . 1 . 5 5 3 2 Highest-Rated Group 134 | . 10 . . . . . . 64 . 26 . 100 134 122 58 Highest-Rated Ally 81 | . 10 . . . . . . 32 . 26 . 32 41 81 41 Total Orders 19 | . . . . . . . . 8 . 1 . 1 . 8 1 STAY 11 | . . . . . . . . 3 . 1 . 1 . 5 1 FOLLOW 5 | . . . . . . . . 2 . . . . . 3 . EXPLORE 1 | . . . . . . . . 1 . . . . . . . RETURN 2 | . . . . . . . . 2 . . . . . . . Ally Attacks 150 | . . . . . . . . 4 . . . 7 51 36 52 Total Damage 4883 | . . . . . . . . 130 . . . 161 1596 1453 1543 Kills 35 | . . . . . . . . . . . . 1 17 8 9 Allies Corrupted . | . . . . . . . . . . . . . . . . Allies Melted . | . . . . . . . . . . . . . . . . Intel | -11 -10 -10 -10 -9 -8 -8 -8 -7 -7 -7 -6 -6 -6 -6 -5 ------- Run | Scr Mat Min Exi Min Mat Gar Mat Fac Was Fac Fac Gar Fac Gar Fac Robot Analysis Total 5 | . 3 . . 2 . . . . . . . . . . . Derelict Logs Recovered 3 | . . 2 . 1 . . . . . . . . . . . Drone Launches 2 | . . . . . . . . 2 . . . . . . . Drone Recoveries 2 | . . . . . . . . 2 . . . . . . . Exploration | -11 -10 -10 -10 -9 -8 -8 -8 -7 -7 -7 -6 -6 -6 -6 -5 ------------- Run | Scr Mat Min Exi Min Mat Gar Mat Fac Was Fac Fac Gar Fac Gar Fac Turns Passed 22632 | 62 1339 1080 632 1033 1651 1640 1140 2042 1262 785 1176 1956 1419 2326 3089 Spaces Moved 10035 | 40 973 544 348 546 656 751 443 808 439 361 463 816 620 936 1291 Core 641 | 37 574 . . . . . . . 3 . . . . 2 25 Treads 9394 | 3 399 544 348 546 656 751 443 808 436 361 463 816 620 934 1266 Legs . | . . . . . . . . . . . . . . . . Wheels . | . . . . . . . . . . . . . . . . Hover . | . . . . . . . . . . . . . . . . Flight . | . . . . . . . . . . . . . . . . Fastest Speed 50 | 50 50 180 180 180 172 197 177 185 180 180 180 180 180 180 50 Average Speed 183 | 58 96 182 180 180 187 197 196 199 200 180 192 186 198 205 195 Slowest Speed 3000 | 160 180 200 180 180 197 197 230 210 1200 180 200 200 200 3000 2400 Overloaded Moves . | . . . . . . . . . . . . . . . . Propulsion Burnouts . | . . . . . . . . . . . . . . . . Robots Hopped . | . . . . . . . . . . . . . . . . Cave-ins Triggered . | . . . . . . . . . . . . . . . . Exploration Rate (%) 53 | 4 96 99 70 98 37 73 43 20 86 10 14 75 19 71 35 Regions Visited 15 Branch Regions 3 Pre-discovered Areas 5 | . 2 1 1 1 . . . . . . . . . . . Known Exits Taken 5 | . 1 . . . 1 . 1 . . . 1 . 1 . . Unknown Exits Taken 5 | 1 . 1 1 1 . . . . . 1 . . . . . Scrap Searched 3 | . . 1 . 2 . . . . . . . . . . . Spaces Dug 115 | . 6 7 . 10 5 4 9 9 . 16 7 8 7 4 23 Terrain Destroyed 461 | . 43 7 . 25 48 14 19 9 . 16 48 112 7 7 106 Melee 54 | . . . . . 4 2 1 9 . 16 7 2 7 . 6 Projectile 51 | . 8 . . . 1 . . . . . . . . . 42 AOE 356 | . 35 7 . 25 43 12 18 . . . 41 110 . 7 58 Terrain Rammed . | . . . . . . . . . . . . . . . . Walls Destroyed . | . . . . . . . . . . . . . . . . Machines Disabled . | . . . . . . . . . . . . . . . . Actions | -11 -10 -10 -10 -9 -8 -8 -8 -7 -7 -7 -6 -6 -6 -6 -5 --------- Run | Scr Mat Min Exi Min Mat Gar Mat Fac Was Fac Fac Gar Fac Gar Fac Total 12840 | 61 1201 598 355 577 987 859 592 1106 602 466 633 1148 760 1220 1675 Wait 1115 | . 75 19 . . 238 28 38 158 21 78 55 160 68 94 83 Move 10020 | 39 972 543 347 545 655 748 442 808 438 360 463 815 619 935 1291 Hop . | . . . . . . . . . . . . . . . . Pick Up 167 | 6 16 5 5 10 15 8 4 10 7 1 6 24 7 22 21 Fast Attach 73 | 4 8 1 . . 3 . 9 4 5 1 4 5 6 9 14 Attach 97 | . 3 1 1 . 6 1 . 8 . . 12 10 3 21 31 Detach 45 | . . 1 . . 1 . 1 3 3 2 10 3 5 9 7 Swap 182 | . 15 4 . 6 13 8 14 37 5 3 5 15 7 16 34 Drop 147 | 2 13 3 2 4 10 8 8 7 16 4 6 4 9 12 39 Fire 734 | 10 99 21 . 12 36 31 60 36 107 . 64 73 18 43 124 Melee 174 | . . . . . 10 4 2 33 . 17 8 12 16 47 25 Ram 2 | . . . . . . . . . . . . . . . 2 Kick . | . . . . . . . . . . . . . . . . Crush 3 | . . . . . . . . . . . . . . . 3 Escape Stasis 65 | . . . . . . 23 . 2 . . . 26 2 12 . Rewire 2 | . . . . . . . . . . . . 1 . . 1 Trap 14 | . . . . . . . 14 . . . . . . . . Miscellaneous . | . . . . . . . . . . . . . . . . Route ------- -11/Scrapyard -10/Materials (discovered 4 exits: *Mat x3 / *Min) -10/Mines (discovered 3 exits: *Mat x2 / *Exi) -10/Exiles (discovered 2 exits: *Min x2) -9/Mines (discovered 2 exits: *Mat x2) -8/Materials -8/Garrison (discovered 3 exits: *Mat x3) -8/Materials (discovered 3 exits: *Fac x3) -7/Factory -7/Waste -7/Factory -6/Factory -6/Garrison (discovered 3 exits: *Fac x3) -6/Factory (discovered 3 exits: *Fac x2 / Gar) -6/Garrison (discovered 3 exits: *Fac x3) -5/Factory (discovered 5 exits: [*Fac] / Upp x2 / Ext x2) History --------- Turn | Location | Event 12 | -11/Scrapyard | Discovered new exit (range 16) 63 | -11/Scrapyard | Entered Materials 247 | -10/Materials | Discovered new exit (range 9) 248 | -10/Materials | Central database locked down 307 | -10/Materials | Build established: Mutant 412 | -10/Materials | Discovered new exit (range 11) 508 | -10/Materials | Identified exit to Materials 544 | -10/Materials | Identified exit to Mines 557 | -10/Materials | Discovered exit to Materials (range 10) 670 | -10/Materials | Repaired Lgt. Assault Rifle 933 | -10/Materials | Discovered exit to Materials (range 11) 1402 | -10/Materials | Entered Mines 1715 | -10/Mines | Joined a pair of Derelicts in attacking an 0b10 outpost 1921 | -10/Mines | Deemed a non-threat by the Exiles lab entrance 1921 | -10/Mines | Discovered new exit (range 5) 2049 | -10/Mines | Learned location of Zion (-6) 2065 | -10/Mines | Discovered exit to Materials (range 10) 2105 | -10/Mines | Discovered exit to Materials (range 9) 2146 | -10/Mines | Found a damaged Exp. Sensor Array with a note attached 2150 | -10/Mines | Found Prototype Device 2293 | -10/Mines | Learned Materials trap positions 2482 | -10/Mines | Entered Exiles 2530 | -10/Exiles | Met 8R-AWN 2557 | -10/Exiles | Met EX-HEX 2642 | -10/Exiles | Met EX-DEC 2732 | -10/Exiles | Discovered new exit (range 10) 2849 | -10/Exiles | Met EX-BIN 2874 | -10/Exiles | Aligned with FarCom system 2876 | -10/Exiles | Given EX-Vault access code 2917 | -10/Exiles | Opened EX-Vault 2930 | -10/Exiles | Found Cloak of Protection 2972 | -10/Exiles | Warned to stay clear of 0b10 Research branches 3092 | -10/Exiles | Discovered new exit (range 14) 3114 | -10/Exiles | Left Exiles lab with Cloak of Protection 3114 | -10/Exiles | Entered Mines 3214 | -9/Mines | Met a Derelict bent on vengeance 3222 | -9/Mines | YI-UF0 nonchalantly dropped a Grenade Launcher on the ground 3244 | -9/Mines | Destroyed YI-UF0 3253 | -9/Mines | Found Prototype Storage 3256 | -9/Mines | Found Prototype Launcher 3257 | -9/Mines | Identified YI-UF0's Doublenader 3274 | -9/Mines | Identified YI-UF0's Bottomless Matter Pit 3654 | -9/Mines | Discovered new exit (range 7) 4057 | -9/Mines | Discovered new exit (range 9) 4147 | -9/Mines | Entered Materials 4147 | -8/Materials | Evolved 4 slots: Utility x4 4148 | -8/Materials | Loaded intel: 14 trap records 4175 | -8/Materials | Identified Exp. Sensor Array 4541 | -8/Materials | Build established: Scavenger-Mutant 4821 | -8/Materials | Repaired Lgt. Armor Plating 5001 | -8/Materials | Build established: Hauler-Mutant 5753 | -8/Materials | Identified exit to Garrison 5798 | -8/Materials | Entered Garrison 5872 | -8/Garrison | Triggered checkpoint 6060 | -8/Garrison | Triggered checkpoint 6105 | -8/Garrison | Discovered new exit (range 10) 6270 | -8/Garrison | Discovered new exit (range 10) 6464 | -8/Garrison | Discovered new exit (range 8) 6488 | -8/Garrison | Installed Relay Interface Framework 6630 | -8/Garrison | Triggered checkpoint 6656 | -8/Garrison | Garrison Relay disabled 6844 | -8/Garrison | Triggered checkpoint 6922 | -8/Garrison | Garrison Relay disabled 7179 | -8/Garrison | Garrison Relay disabled 7438 | -8/Garrison | Entered Materials 7846 | -8/Materials | Build established: Bothacker-Mutant 8117 | -8/Materials | Identified exit to Factory 8578 | -8/Materials | Entered Factory 8578 | -7/Factory | Evolved 2 slots: Utility x2 9030 | -7/Factory | Repaired Hvy. Assault Rifle 9070 | -7/Factory | Repaired Adv. Treads 9593 | -7/Factory | Lost 3 parts (1p1n1u) 9917 | -7/Factory | Build established: Scavenger-Mutant 10294 | -7/Factory | Discovered new exit (range 5) 10485 | -7/Factory | Build established: Hauler-Mutant 10620 | -7/Factory | Sucked down chute 10620 | -7/Factory | Entered Waste 10631 | -7/Waste | Spotted C-40 Crusher 10734 | -7/Waste | Spotted C-40 Crusher 10752 | -7/Waste | Spotted C-40 Crusher 10758 | -7/Waste | Spotted C-40 Crusher 10768 | -7/Waste | Spotted C-40 Crusher 10772 | -7/Waste | Spotted C-40 Crusher 10937 | -7/Waste | Discovered new exit (range 11) 11175 | -7/Waste | Destroyed C-40 Crusher 11241 | -7/Waste | Found Unknown Protection 11248 | -7/Waste | Destroyed C-40 Crusher 11253 | -7/Waste | Destroyed C-40 Crusher 11330 | -7/Waste | Found Unknown Protection 11330 | -7/Waste | Identified Damper Plating (x2) 11611 | -7/Waste | Destroyed C-40 Crusher 11641 | -7/Waste | Build established: Scavenger-Mutant 11882 | -7/Waste | Entered Factory 12245 | -7/Factory | Build established: Hauler-Mutant 12280 | -7/Factory | Fabricated Hcp. Storage Unit? 12449 | -7/Factory | Fabricated Hcp. Storage Unit (x1) 12476 | -7/Factory | Fabricated Hcp. Storage Unit? 12660 | -7/Factory | Discovered new exit (range 4) 12667 | -7/Factory | Entered another Factory area 12667 | -6/Factory | Evolved 2 slots: Utility x2 13370 | -6/Factory | Spotted B-75 Beast 13422 | -6/Factory | Destroyed B-75 Beast 13471 | -6/Factory | Lost 3 parts (1n2u) 13843 | -6/Factory | Identified exit to Garrison 13843 | -6/Factory | Entered Garrison 13888 | -6/Garrison | Triggered checkpoint 13936 | -6/Garrison | Garrison Relay disabled 14128 | -6/Garrison | Triggered checkpoint 14561 | -6/Garrison | Lost 3 parts (1p1u1w) 14641 | -6/Garrison | Discovered new exit (range 14) 14772 | -6/Garrison | Discovered new exit (range 9) 14879 | -6/Garrison | Build established: Scavenger-Mutant 14920 | -6/Garrison | Triggered checkpoint 14997 | -6/Garrison | Garrison Relay disabled 15094 | -6/Garrison | Triggered checkpoint 15201 | -6/Garrison | Discovered new exit (range 10) 15226 | -6/Garrison | Expanded RIF knowledge: Robot Detection 15258 | -6/Garrison | Triggered checkpoint 15314 | -6/Garrison | Build established: Bothacker-Mutant 15325 | -6/Garrison | Garrison Relay disabled 15658 | -6/Garrison | Triggered checkpoint 15691 | -6/Garrison | Garrison Relay disabled 15799 | -6/Garrison | Entered Factory 15799 | -6/Factory | Accompanied by 5 allies 16307 | -6/Factory | Fabricated HERF Cannon? 16353 | -6/Factory | Fabricated Hcp. Storage Unit (x1) 16479 | -6/Factory | Repaired Lgt. Angular Momentum Engine? 16885 | -6/Factory | Discovered new exit (range 13) 17037 | -6/Factory | Discovered new exit (range 16) 17136 | -6/Factory | Identified exit to Garrison 17160 | -6/Factory | Garrison activated, responded to threat 17218 | -6/Factory | Entered Garrison 17218 | -6/Garrison | Accompanied by 1 ally 17312 | -6/Garrison | Triggered checkpoint 17382 | -6/Garrison | Garrison Relay disabled 17627 | -6/Garrison | Spotted B-75 Beast 17650 | -6/Garrison | Triggered checkpoint 17654 | -6/Garrison | Triggered checkpoint 17666 | -6/Garrison | Triggered checkpoint 17688 | -6/Garrison | Core integrity fell below 50% 17706 | -6/Garrison | System corruption reached 10% 17741 | -6/Garrison | Lost 13 parts (1p3n3u6w) 17815 | -6/Garrison | Core integrity fell below 20% 18110 | -6/Garrison | Discovered new exit (range 10) 18278 | -6/Garrison | Discovered new exit (range 13) 18394 | -6/Garrison | Triggered checkpoint 18458 | -6/Garrison | Triggered checkpoint 18518 | -6/Garrison | Garrison Relay disabled 18657 | -6/Garrison | Discovered new exit (range 15) 18784 | -6/Garrison | Expanded RIF knowledge: Signal Jamming 19062 | -6/Garrison | Triggered checkpoint 19140 | -6/Garrison | Garrison Relay disabled 19412 | -6/Garrison | Triggered checkpoint 19466 | -6/Garrison | Garrison Relay disabled 19544 | -6/Garrison | Entered Factory 19544 | -5/Factory | Evolved 2 slots: Utility x2 19911 | -5/Factory | Fabricated Biometal Medium Treads? 20007 | -5/Factory | Discovered new exit (range 5) 21045 | -5/Factory | Identified exit to Upper Caves 21045 | -5/Factory | Identified exit to Extension 21322 | -5/Factory | Build established: Hauler-Mutant 21921 | -5/Factory | Build established: Bothacker-Mutant 22112 | -5/Factory | System corruption reached 10% 22475 | -5/Factory | Lost 13 parts (2p3n4u4w) 22583 | -5/Factory | Core integrity fell below 50% 22618 | -5/Factory | Core integrity fell below 20% 22633 | -5/Factory | Destroyed by H-66 Slayer with Gauss Rifle Last Messages --------------- 22614_ R-10 Processor collects Imp. Component Analysis Suite. 22614_ Dropped Hcp. Storage Unit. 22616_ Imp. Hardlight Generator destroyed. 22617_ Slug penetrates Wall. 22617_ Penetrated by Slug. 22617_ Scythe destroyed. 22617_ Penetrated by Slug. 22617_ Relay Coupler [Swarmer] destroyed. 22618_ K-01 Serf collects debris. 22618_ Dropped Hcp. Storage Unit. 22619_ Imp. Core Shielding destroyed. 22620_ Slug penetrates Wall. 22620_ Slug penetrates S-27 Virus. 22620_ S-27 Virus destroyed. 22621_ K-01 Serf collects debris. 22624_ Dropped Energy Well. 22630_ Slug penetrates Wall. 22630_ Relay Coupler [Hunter] destroyed. 22632_ Slammed into H-66 Slayer. 22633_ Penetrated by Slug. Map ----- +----------------------------------------------------+ | ???????????????????????????????????????????????? | | ????????????????????????????????????????????????? | | ?????????????????????????????????????????????????? | | ?????????????????????????????????????????????????? | | ?????????????????????????????????????????????????? | | ?????????????????????????????????????????????????? | | ?????????????????????????????????????????????????? | | ?????????????????????????????????????????????????? | | ?????????????????????????????????????????????????? | | ?????????????????????????????????????????????????? | | ?????????????????????????????????????????????????? | | ??????????????????Y??????????????????????????????? | | ?????????????????????????????????????????????????? | | ???? ??????????????????????????????????????????? | | ???? #?????????????????????????????????????????? | | ???? #?????????????????????????????????????????? | | #### #?????????????????????????????????????????? | | = # #?????????????????????????????????????????? | | # #?????????????????????????????????????????? | | # #????#????????????????????????????????????? | | "" # #??? #????????????????????????????????????? | | "" # #??? #????????????????????????????????????? | | "" # A#??? #????????????????????????????????????? | | # #??? #????????????????????????????????????? | | ""t# #??? #???###+########## #?????????????????? | | "" # ####+#???# @h +?????????????????? | | "" # ^ #???# % #######?????????????????? | | + #???# #???????????????????????? | | # ^ !! #####k #???????????????????????? | | #### !! #???????????????????????? | | ??# !! ##### u s#???????????????????????? | | ??# #???# ##"#####???????????????????? | | ??# #???# # #???????????????????? | | ??# #???# #= "" #???????????????????? | | ??# "T" ##### # "" #???????????????????? | | ??######### # #% # """ #???????????????????? | | ??????#####w# # # """ #???????????????????? | | ??????# # #hh""" #???????????????????? | | ??????# # #ss #???????????????????? | | ??????# A #% # ""#???????????????????? | | ??????# # % s #! ""#???????????????????? | | ??????# "" # # T"#???????????????????? | | ??????# "T +% !/ ""#?????????#??????#### | | ??????# """ # %!!!# ""#########+#????? | | ??????# #%%%!!# # #????""" | | ??????###########%!!k!######## #???#""" | | ?????????# %%!%%%% # #???#""" | | ?????????# % !%%*! % # #???# | | ?????????# != # #???#""" | | ?????????# + #???#""" | +----------------------------------------------------+ Best States ------------- Heat Dissipation 66 Energy Generation 21 Energy Capacity 600 Matter Stores 300 Matter Capacity 300 Sight Range 20 Robot Scan Range 30 Terrain Scan Density 10 Cloak Strength 5 EM Shielding 3 Armor Coverage 3150 Resistance: EM 90 Core Shielding 30 Evasion (%) 50 Recoil Reduction 2 Offensive Hacking 10 Defensive Hacking 20 Relay Coupler Types 71 Relay Coupler Value 4 Item Schematics ----------------- Hcp. Storage Unit | -10/Materials | Hacked Med. Storage Unit | -10/Materials | Hacked Hacking Suite | -8/Materials | Hacked System Shield | -8/Materials | Scanalyzed Lrn. Tractor Beam | -8/Materials | Hacked Exp. Sensor Array | -7/Factory | Scanalyzed Adv. Plasma Cannon | -5/Factory | Scanalyzed Biometal Medium Treads | -5/Factory | Scanalyzed Fusion Bomb Launcher | -5/Factory | Hacked Robot Schematics ------------------ None Fabricated ------------ Hcp. Storage Unit | x1 | -7/Factory Hcp. Storage Unit | x1 | -7/Factory Hcp. Storage Unit | x1 | -7/Factory HERF Cannon | x1 | -6/Factory | Preloaded Hcp. Storage Unit | x1 | -6/Factory Biometal Medium Treads | x2 | -5/Factory | Preloaded Alien Tech Used ----------------- None Achievements -------------- None Challenges ------------ None Game ------ Seed ThermalThunderLauncher Manual? 0 Play Time 03:08:50 Cumulative 412.3 hours Start 2021.07.19 @ 16:11:52 End 2021.07.19 @ 21:54:39 Sessions 7 Manual Loads 0 Difficulty Rogue Special Mode None Game No. 334 Rogue 334 Adventurer 0 Explorer 0 Win Type - Total 1 Types 0/0/0/1/0/0/0/0/0 Lore% 71 Gallery% 80 Achievement% 60 Wizard Run 0 Options --------- ASCII 0 Keyboard 1 Movement Numpad Keybinds 0 Fullscreen 1 Font 12/Terminus Map View 83x54 Tactical HUD 1 Map Filters NONE Filters NONE Steam 1 RUN: 4713be02-a8f3-4dd1-990b-35dc5b8c87f2